{"text_format":"1","workbook":"xlsx","n_sheets":16,"sheets":["Kurs","Missweisung","Ablenkung","strom","radar","gezeiten","grenzkurs","wind","Peilung-Beobachtung","Formeln","Wind-Welle","Wolken","formulars","KVR","help","Tabelle5"],"not_rendered":{"charts":1,"images":29,"macros":1,"external_links":0,"defined_names":18,"comments":0,"pivot_tables":0},"unopened":[],"bounds":{"document_bytes":16777216,"sheet_cells":100000,"rows_first":2000,"rows_last":500,"rows_between":2000,"halvings":0,"cell_chars":16384,"cell_head_chars":4096},"cells_cut":0,"cells_raw":0,"read":"whole","date_system":"1900"}

{"sheet":"Kurs","index":0,"n_rows":13,"n_cols":6,"rows_kept":13,"cut":false,"hidden":false,"merged":[]}
[]
[]
[]
["Kursbeschickung"]
["Mgk",null,110,{"$f":"D7-D6","v":109.9},7,"MgK (Magnetkompasskurs): Winkel zwischen Magnetkompass Nord (MgN) und der Rechtvorausrichtung des Schiffes"]
["Abl",null,{"$f":"IF(VLOOKUP(ROUNDDOWN(C5,-1),abl_mgk,2,0)<VLOOKUP(ROUNDUP(C5,-1),abl_mgk,2,0),VLOOKUP(ROUNDDOWN(C5,-1),abl_mgk,2,0)+ABS((VLOOKUP(ROUNDDOWN(C5,-1),abl_mgk,2,0)-VLOOKUP(ROUNDUP(C5,-1),abl_mgk,2,0))/10*(C5-ROUNDDOWN(C5,-1))),VLOOKUP(ROUNDDOWN(C5,-1),abl_mgk,2,0)-ABS((VLOOKUP(ROUNDDOWN(C5,-1),abl_mgk,2,0)-VLOOKUP(ROUNDUP(C5,-1),abl_mgk,2,0))/10*(C5-ROUNDDOWN(C5,-1))))","v":9},{"$f":"IF(VLOOKUP(ROUNDDOWN(D7,-1),abl_rwk,2,0)<VLOOKUP(ROUNDUP(D7,-1),abl_rwk,2,0),VLOOKUP(ROUNDDOWN(D7,-1),abl_rwk,2,0)+ABS((VLOOKUP(ROUNDDOWN(D7,-1),abl_rwk,2,0)-VLOOKUP(ROUNDUP(D7,-1),abl_rwk,2,0))/10*(D7-ROUNDDOWN(D7,-1))),VLOOKUP(ROUNDDOWN(D7,-1),abl_rwk,2,0)-ABS((VLOOKUP(ROUNDDOWN(D7,-1),abl_rwk,2,0)-VLOOKUP(ROUNDUP(D7,-1),abl_rwk,2,0))/10*(D7-ROUNDDOWN(D7,-1))))","v":9.1},null,"Abl (Ablenkung; älterer Begriff: Deviation): Winkel zwischen missweisend Nord (mwN) und Magnetkompass Nord (MgN)"]
["mwk",null,{"$f":"C5+C6","v":119},{"$f":"D9-D8","v":119},null,"mwK (missweisender Kurs): Winkel zwischen missweisend Nord (mwN) und der Rechtvorausrichtung"]
["MW",null,-3,-3,null,"Mw (Missweisung): Winkel zwischen rechtweisend Nord (rwN) und missweisend Nord (mwN)"]
["rwk",null,{"$f":"C7+C8","v":116},{"$f":"D11-D10","v":116},null,"rwK (rechtweisender Kurs): Winkel zwischen rechtweisend Nord (rwN) und der Rechtvorausrichtung des Schiffes"]
["BW",null,5,5,null,"BW (Beschickung Wind): Winkel zwischen rechtweisender Kurs (rwK) und dem Kurs durchs Wasser (KdW)"]
["KdW",null,{"$f":"C9+C10","v":121},{"$f":"D13-D12","v":121},null,"KdW (Kurs durchs Wasser): Auf das Wasser bezogener Winkel zwischen dem Kurs und rechtweisend Nord (rwN)"]
["BS",null,-5,-5,null,"BS (Beschickung Strom): Durch Strom bewirkte Versetzung von einem gegissten zu einem wahren Ort"]
["KüG",null,{"$f":"C11+C12","v":116},{"$f":"C13","v":116},null,"KüG (Kurs über Grund): Auf den Grund bezogener Winkel zwischen dem Kurs und rechtweisend Nord (rwN)"]

{"sheet":"Missweisung","index":1,"n_rows":6,"n_cols":4,"rows_kept":6,"cut":false,"hidden":false,"merged":[]}
["Missweisung"]
["Karte",2000]
[null,0.17013888888888887,"west","JJJJ, °,', Ost/west"]
["Järhl. Änderung",5.5555555555555558E-3,"east","°, '"]
["Aktuelles Jahr",2005]
["MW",{"$f":"ROUND((IF(C3=\"west\",-B3*24,B3*24)+(IF(C4=\"west\",-B4*24,B4*24)*(B5-B2))),0)","v":-3},"°"]

{"sheet":"Ablenkung","index":2,"n_rows":42,"n_cols":39,"rows_kept":42,"cut":false,"hidden":false,"merged":[]}
[]
[]
["AblenkungsTabelle"]
[null,null,null,null,null,null,null,null,null,null,null,null,null,null,null,null,null,null,null,null,null,null,null,null,null,null,null,null,null,null,null,null,null,null,null,null,null,null,{"$f":"ATAN(10/13)*180/PI()","v":37.568592028827496}]
[null,"Mgk","MW",null,"mwk","MW",null,null,null,null,null,null,null,null,null,null,null,null,null,null,null,null,null,null,null,null,null,null,null,null,null,null,"Mgk","MW",null,"mwk","MW"]
[null,0,{"$f":"AH6","v":-4},null,0,{"$f":"AK6","v":-3},null,null,null,null,null,null,null,null,null,null,null,null,null,null,null,null,null,null,null,null,null,null,null,null,null,null,0,-4,null,0,-3,null,{"$f":"10/TAN(AM4*PI()/180)","v":12.999999999999998}]
[null,10,{"$f":"AH7","v":-1},null,10,{"$f":"AK7","v":-1},null,null,null,null,null,null,null,null,null,null,null,null,null,null,null,null,null,null,null,null,null,null,null,null,null,null,10,-1,null,10,-1,null,0]
[null,20,2,null,20,2,null,null,null,null,null,null,null,null,null,null,null,null,null,null,null,null,null,null,null,null,null,null,null,null,null,null,20,2,null,20,2,null,{"$f":"-AM6","v":-12.999999999999998}]
[null,30,5,null,30,4,null,null,null,null,null,null,null,null,null,null,null,null,null,null,null,null,null,null,null,null,null,null,null,null,null,null,30,5,null,30,4]
[null,40,7,null,40,6,null,null,null,null,null,null,null,null,null,null,null,null,null,null,null,null,null,null,null,null,null,null,null,null,null,null,40,7,null,40,6,null,{"$f":"AM6","v":12.999999999999998}]
[null,50,9,null,50,7,null,null,null,null,null,null,null,null,null,null,null,null,null,null,null,null,null,null,null,null,null,null,null,null,null,null,50,9,null,50,7,null,0]
[null,60,10,null,60,9,null,null,null,null,null,null,null,null,null,null,null,null,null,null,null,null,null,null,null,null,null,null,null,null,null,null,60,10,null,60,9,null,{"$f":"-AM10","v":-12.999999999999998}]
[null,70,11,null,70,10,null,null,null,null,null,null,null,null,null,null,null,null,null,null,null,null,null,null,null,null,null,null,null,null,null,null,70,11,null,70,10]
[null,80,12,null,80,11,null,null,null,null,null,null,null,null,null,null,null,null,null,null,null,null,null,null,null,null,null,null,null,null,null,null,80,12,null,80,11,null,{"$f":"AM10","v":12.999999999999998}]
[null,90,11,null,90,11,null,null,null,null,null,null,null,null,null,null,null,null,null,null,null,null,null,null,null,null,null,null,null,null,null,null,90,11,null,90,11,null,0]
[null,100,10,null,100,11,null,null,null,null,null,null,null,null,null,null,null,null,null,null,null,null,null,null,null,null,null,null,null,null,null,null,100,10,null,100,11,null,{"$f":"-AM14","v":-12.999999999999998}]
[null,110,9,null,110,10,null,null,null,null,null,null,null,null,null,null,null,null,null,null,null,null,null,null,null,null,null,null,null,null,null,null,110,9,null,110,10]
[null,120,8,null,120,9,null,null,null,null,null,null,null,null,null,null,null,null,null,null,null,null,null,null,null,null,null,null,null,null,null,null,120,8,null,120,9,null,{"$f":"AM14","v":12.999999999999998}]
[null,130,8,null,130,8,null,null,null,null,null,null,null,null,null,null,null,null,null,null,null,null,null,null,null,null,null,null,null,null,null,null,130,8,null,130,8,null,0]
[null,140,6,null,140,7,null,null,null,null,null,null,null,null,null,null,null,null,null,null,null,null,null,null,null,null,null,null,null,null,null,null,140,6,null,140,7,null,{"$f":"-AM18","v":-12.999999999999998}]
[null,150,5,null,150,6,null,null,null,null,null,null,null,null,null,null,null,null,null,null,null,null,null,null,null,null,null,null,null,null,null,null,150,5,null,150,6]
[null,160,4,null,160,4,null,null,null,null,null,null,null,null,null,null,null,null,null,null,null,null,null,null,null,null,null,null,null,null,null,null,160,4,null,160,4,null,{"$f":"AM18","v":12.999999999999998}]
[null,170,4,null,170,4,null,null,null,null,null,null,null,null,null,null,null,null,null,null,null,null,null,null,null,null,null,null,null,null,null,null,170,4,null,170,4,null,0]
[null,180,6,null,180,5,null,null,null,null,null,null,null,null,null,null,null,null,null,null,null,null,null,null,null,null,null,null,null,null,null,null,180,6,null,180,5,null,{"$f":"-AM22","v":-12.999999999999998}]
[null,190,7,null,190,6,null,null,null,null,null,null,null,null,null,null,null,null,null,null,null,null,null,null,null,null,null,null,null,null,null,null,190,7,null,190,6]
[null,200,7,null,200,7,null,null,null,null,null,null,null,null,null,null,null,null,null,null,null,null,null,null,null,null,null,null,null,null,null,null,200,7,null,200,7,null,{"$f":"AM22","v":12.999999999999998}]
[null,210,6,null,210,7,null,null,null,null,null,null,null,null,null,null,null,null,null,null,null,null,null,null,null,null,null,null,null,null,null,null,210,6,null,210,7,null,0]
[null,220,5,null,220,6,null,null,null,null,null,null,null,null,null,null,null,null,null,null,null,null,null,null,null,null,null,null,null,null,null,null,220,5,null,220,6,null,{"$f":"-AM26","v":-12.999999999999998}]
[null,230,3,null,230,4,null,null,null,null,null,null,null,null,null,null,null,null,null,null,null,null,null,null,null,null,null,null,null,null,null,null,230,3,null,230,4]
[null,240,2,null,240,2,null,null,null,null,null,null,null,null,null,null,null,null,null,null,null,null,null,null,null,null,null,null,null,null,null,null,240,2,null,240,2,null,{"$f":"AM26","v":12.999999999999998}]
[null,250,0,null,250,0,null,null,null,null,null,null,null,null,null,null,null,null,null,null,null,null,null,null,null,null,null,null,null,null,null,null,250,0,null,250,0,null,0]
[null,260,-3,null,260,-4,null,null,null,null,null,null,null,null,null,null,null,null,null,null,null,null,null,null,null,null,null,null,null,null,null,null,260,-3,null,260,-4,null,{"$f":"-AM30","v":-12.999999999999998}]
[null,270,-5,null,270,-6,null,null,null,null,null,null,null,null,null,null,null,null,null,null,null,null,null,null,null,null,null,null,null,null,null,null,270,-5,null,270,-6]
[null,280,-7,null,280,-9,null,null,null,null,null,null,null,null,null,null,null,null,null,null,null,null,null,null,null,null,null,null,null,null,null,null,280,-7,null,280,-9,null,{"$f":"AM30","v":12.999999999999998}]
[null,290,-9,null,290,-10,null,null,null,null,null,null,null,null,null,null,null,null,null,null,null,null,null,null,null,null,null,null,null,null,null,null,290,-9,null,290,-10,null,0]
[null,300,-10,null,300,-11,null,null,null,null,null,null,null,null,null,null,null,null,null,null,null,null,null,null,null,null,null,null,null,null,null,null,300,-10,null,300,-11,null,{"$f":"-AM34","v":-12.999999999999998}]
[null,310,-11,null,310,-11,null,null,null,null,null,null,null,null,null,null,null,null,null,null,null,null,null,null,null,null,null,null,null,null,null,null,310,-11,null,310,-11]
[null,320,-11,null,320,-10,null,null,null,null,null,null,null,null,null,null,null,null,null,null,null,null,null,null,null,null,null,null,null,null,null,null,320,-11,null,320,-10,null,{"$f":"AM34","v":12.999999999999998}]
[null,330,-10,null,330,-9,null,null,null,null,null,null,null,null,null,null,null,null,null,null,null,null,null,null,null,null,null,null,null,null,null,null,330,-10,null,330,-9,null,0]
[null,340,-9,null,340,-8,null,null,null,null,null,null,null,null,null,null,null,null,null,null,null,null,null,null,null,null,null,null,null,null,null,null,340,-9,null,340,-8,null,{"$f":"-AM38","v":-12.999999999999998}]
[null,350,-7,null,350,-6,null,null,null,null,null,null,null,null,null,null,null,null,null,null,null,null,null,null,null,null,null,null,null,null,null,null,350,-7,null,350,-6]
[null,360,-4,null,360,-3,null,null,null,null,null,null,null,null,null,null,null,null,null,null,null,null,null,null,null,null,null,null,null,null,null,null,360,-4,null,360,-3,null,{"$f":"AM38","v":12.999999999999998}]

{"sheet":"strom","index":3,"n_rows":26,"n_cols":13,"rows_kept":26,"cut":false,"hidden":false,"merged":[]}
[null,null,null,null,null,null,null,null,"Welchen Weg hat das Schiff über Grund zurückgelegt ?"]
[null,null,null,null,null,null,null,null,null,"Vektoren",null,null,"Vektoren"]
[]
[null,"Strombeschickung",null,null,null,null,null,null,"Kdw",{"$f":"C6","v":120},null,"Kdw",{"$f":"(D10)-ASINH(D9/(D7/(SIN((D8-D10)*PI()/180))))*180/PI()","v":120.01850118354322}]
[null,null,"Maßstab",1,null,null,null,null,"FdW",{"$f":"C7","v":5},null,"FdW",{"$f":"D7","v":5}]
[null,"Kdw",120,{"$f":"M4","v":120.01850118354322},"°",null,null,"Kdw","gegen",{"$f":"SIN(C6*(PI()/180))*C7","v":4.3301270189221936},"Kdw","gegen",{"$f":"SIN(D6*(PI()/180))*D7","v":4.329319526767109}]
[null,"FdW",5,{"$f":"C7","v":5},"kn",null,null,null,"an",{"$f":"COS(C6*(PI()/180))*C7","v":-2.4999999999999991},null,"an",{"$f":"COS(D6*(PI()/180))*D7","v":-2.5013980960960644}]
[null,"StR",140,{"$f":"C8","v":140},"°",null,null,"StR","gegen",{"$f":"SIN(C8*(PI()/180))*C9","v":1.2855752193730789},"StR","gegen",{"$f":"SIN(D8*(PI()/180))*D9","v":1.2855752193730789}]
[null,"StG",2,2,"kn",null,null,null,"an",{"$f":"COS(C8*(PI()/180))*C9","v":-1.5320888862379558},null,"an",{"$f":"COS(D8*(PI()/180))*D9","v":-1.5320888862379558}]
[null,"KüG",{"$f":"J12","v":125.67844585661653},125.67844585661653,"°",null,null,"KüG","gegen",{"$f":"J6+J8","v":5.6157022382952722},"KüG","gegen",{"$f":"SIN(D10*PI()/180)*D11","v":5.6158319451367058}]
[null,"FüG",{"$f":"J13","v":6.913309801803921},{"$f":"M13","v":6.9134694797106526},"kn",null,null,null,"an",{"$f":"J7+J9","v":-4.0320888862379549},null,"an",{"$f":"COS(D10*PI()/180)*D11","v":-4.0321820160891502}]
[null,"BS",{"$f":"J14","v":5.6784458566165341},{"$f":"M14","v":5.6599446730733121},"°",null,null,null,"KüG",{"$f":"IF(ATAN2(J11,J10)*180/(PI())<0,360+ATAN2(J11,J10)*180/(PI()),ATAN2(J11,J10)*180/(PI()))","v":125.67844585661653},null,"KüG",{"$f":"D10","v":125.67844585661653}]
[null,null,null,null,null,null,null,null,"FüG",{"$f":"SQRT(POWER(J10,2)+POWER(J11,2))","v":6.913309801803921},null,"FüG",{"$f":"SQRT(POWER(D9,2)+POWER(D7,2)-(2*D9*D7*COS((180-(ASINH(D9/(D7/(SIN((D8-D10)*PI()/180))))*180/PI())-(D8-D10))*PI()/180)))","v":6.9134694797106526}]
[null,null,null,null,null,null,null,null,"BS",{"$f":"J12-J4","v":5.6784458566165341},null,"BS",{"$f":"M12-M4","v":5.6599446730733121}]
[]
[]
[]
[]
[]
[null,null,{"$f":"B6","v":"Kdw"},{"$f":"C6","v":120},120.01850118354322]
[null,null,{"$f":"B7","v":"FdW"},5,5]
[null,null,{"$f":"B8","v":"StR"},140,140]
[null,null,{"$f":"B9","v":"StG"},2,2]
[null,null,{"$f":"B10","v":"KüG"},125.67844585661653,125.67844585661653]
[null,null,{"$f":"B11","v":"FüG"},6.913309801803921,6.9134694797106526]
[null,null,{"$f":"B12","v":"BS"},5.6784458566165341,5.6599446730733121]

{"sheet":"radar","index":4,"n_rows":49,"n_cols":16,"rows_kept":49,"cut":false,"hidden":false,"merged":[]}
[]
["Head up",null,null,"Maßstab",2,null,null,"Koordinaten"]
[null,"RsP [0-360]","sm /  kn (kurisv)","Mgk","hh:mm",null,null,"x","y","length","winkel (0 - 360°) "]
["A FdW",0,6,130,null,"Kurs A (eigener), 0 = head up",null,{"$f":"J4*(SIN(B4*PI()/180))","v":0},{"$f":"J4*(COS(B4*PI()/180))","v":1.2000000000000002},{"$f":"C4*($E$9/60)","v":1.2000000000000002},{"$f":"IF(ATAN2(I4,H4)*180/PI()<0,360+ATAN2(I4,H4)*180/PI(),ATAN2(I4,H4)*180/PI())","v":0}]
[null,null,null,null,null,null,null,{"$f":"H6-H4","v":4.6984631039295417},{"$f":"I6-I4","v":0.510100716628344},{"$f":"SQRT((POWER(H5,2)+POWER(I5,2)))*($E$9/60)","v":0.94521443662466309},{"$f":"IF(ATAN2(I5,H5)*180/PI()<0,360+ATAN2(I5,H5)*180/PI(),ATAN2(I5,H5)*180/PI())","v":83.80380513904781}]
["B1",70,5,100,"11:36:00","Beobachtung 1",null,{"$f":"J6*(SIN(B6*PI()/180))","v":4.6984631039295417},{"$f":"J6*(COS(B6*PI()/180))","v":1.7101007166283442},{"$f":"C6","v":5},{"$f":"IF(ATAN2(I6,H6)*180/PI()<0,360+ATAN2(I6,H6)*180/PI(),ATAN2(I6,H6)*180/PI())","v":70}]
["B2",60,4,90,"11:48:00","Beobachtung 2"]
["B2kor",{"$f":"(D7-D6)+B7","v":50},{"$f":"C7","v":4},{"$f":"D6","v":100},{"$f":"E7","v":"11:48:00"},"Beobachtung 2 korrigier, bezug auf B1",null,{"$f":"J8*(SIN(B8*PI()/180))","v":3.0641777724759121},{"$f":"J8*(COS(B8*PI()/180))","v":2.5711504387461575},{"$f":"C8","v":4},{"$f":"IF(ATAN2(I8,H8)*180/PI()<0,360+ATAN2(I8,H8)*180/PI(),ATAN2(I8,H8)*180/PI())","v":49.999999999999993}]
[null,null,null,"Zeitdiff b1/b2",{"$f":"(MINUTE(E7)-MINUTE(E6))","v":12}]
["KBrel",{"$f":"K10","v":297.78323091833749},{"$f":"J10*(60/E9)","v":9.2361993922874781},{"$f":"IF(K10+D$8>360,K10+D$8-360,K10+D$8)","v":37.783230918337495},null,"Kurs B relativ",null,{"$f":"H8-H6","v":-1.6342853314536296},{"$f":"I8-I6","v":0.86104972211781328},{"$f":"SQRT((POWER(H10,2)+POWER(I10,2)))","v":1.8472398784574957},{"$f":"IF(ATAN2(I10,H10)*180/PI()<0,360+ATAN2(I10,H10)*180/PI(),ATAN2(I10,H10)*180/PI())","v":297.78323091833749}]
["CPA",{"$f":"IF(K11>360,K11-360,K11)","v":207.78323091833749},{"$f":"ABS(J11)","v":3.7030398413796295},{"$f":"IF(J11>0,\"bkb\",\"stb\")","v":"stb"},null,"Kleinster pasierabstand",null,{"$f":"J11*(SIN(B11*PI()/180))","v":1.7260895369331348},{"$f":"J11*(COS(B11*PI()/180))","v":3.276143918898379},{"$f":"COS((K8-K11)*PI()/180)*C8","v":-3.7030398413796295},{"$f":"IF(K10+90>360,K10+90-360,K10+90)+180","v":207.78323091833749}]
["TCPA",null,{"$f":"J12/(C10/60)","v":9.8251257093712194},null,null,"Zeitspanne bis zum CPA [min]",null,{"$f":"H11-H8","v":-1.3380882355427772},{"$f":"I11-I8","v":0.70499348015222152},{"$f":"SQRT((POWER(H12,2)+POWER(I12,2)))","v":1.5124470017673755},{"$f":"IF(K10+90>360,K10+90-360,K10+90)","v":27.783230918337495}]
["KBabs",{"$f":"K13","v":321.58775256017037},{"$f":"J13*(60/E9)","v":13.151819742574045},{"$f":"IF(K13+D$8>360,K13+D$8-360,K13+D$8)","v":61.587752560170372},null,"Kurs B absolut",null,{"$f":"-(-H8+H6)","v":-1.6342853314536296},{"$f":"I8-(I6-I4)","v":2.0610497221178132},{"$f":"SQRT((POWER(H13,2)+POWER(I13,2)))","v":2.6303639485148089},{"$f":"IF(ATAN2(I13,H13)*180/PI()<0,360+ATAN2(I13,H13)*180/PI(),ATAN2(I13,H13)*180/PI())","v":321.58775256017037}]
[]
["Kursänderung",null,6,130]
["delta",null,{"$f":"C15-C4","v":0},{"$f":"D15-D8","v":30},null,null,null,{"$f":"J16*(SIN(B16*PI()/180))","v":0},{"$f":"J16*(COS(B16*PI()/180))","v":0},{"$f":"C16*($E$9/60)","v":0},{"$f":"IF(ATAN2(I16,H16)*180/PI()<0,360+ATAN2(I16,H16)*180/PI(),ATAN2(I16,H16)*180/PI())","v":{"$error":"#DIV/0!"}}]
["Bospeed",{"$f":"K17","v":0},{"$f":"J17","v":1.2000000000000002},null,null,null,null,{"$f":"H16","v":0},{"$f":"C15*($E$9/60)","v":1.2000000000000002},{"$f":"SQRT((POWER(H17,2)+POWER(I17,2)))","v":1.2000000000000002},{"$f":"IF(ATAN2(I17,H17)*180/PI()<0,360+ATAN2(I17,H17)*180/PI(),ATAN2(I17,H17)*180/PI())","v":0}]
["Bocourse",null,null,130,null,null,null,{"$f":"SIN(D16*PI()/180)*J17","v":0.6},{"$f":"COS(D16*PI()/180)*J17","v":1.0392304845413265},{"$f":"SQRT((POWER(H18,2)+POWER(I18,2)))","v":1.2000000000000002},{"$f":"IF(ATAN2(I18,H18)*180/PI()<0,360+ATAN2(I18,H18)*180/PI(),ATAN2(I18,H18)*180/PI())","v":29.999999999999996}]
["Bo",null,null,null,null,null,null,{"$f":"H6+H17+H18","v":5.2984631039295413},{"$f":"I6-(I4)+I18","v":1.5493312011696705},{"$f":"SQRT((POWER(H19,2)+POWER(I19,2)))","v":5.5203386159383854},{"$f":"IF(ATAN2(I19,H19)*180/PI()<0,360+ATAN2(I19,H19)*180/PI(),ATAN2(I19,H19)*180/PI())","v":73.700476561764148}]
["KBrel",{"$f":"K20","v":294.57632662047911},{"$f":"J20*(60/E9)","v":12.284284163749884},{"$f":"IF(K20+D$8>360,K20+D$8-360,K20+D$8)","v":34.576326620479108},null,"Kurs B relativ",null,{"$f":"H8-H19","v":-2.2342853314536293},{"$f":"I8-I19","v":1.021819237576487},{"$f":"SQRT((POWER(H20,2)+POWER(I20,2)))","v":2.4568568327499767},{"$f":"IF(ATAN2(I20,H20)*180/PI()<0,360+ATAN2(I20,H20)*180/PI(),ATAN2(I20,H20)*180/PI())","v":294.57632662047911}]
["CPA",{"$f":"IF(K21>360,K21-360,K21)","v":204.57632662047911},{"$f":"ABS(J21)","v":3.6126319560861848},{"$f":"IF(J21>0,\"bkb\",\"stb\")","v":"stb"},null,"Kleinster pasierabstand",null,{"$f":"J21*(SIN(B21*PI()/180))","v":1.5025119827110838},{"$f":"J21*(COS(B21*PI()/180))","v":3.2853565091089738},{"$f":"COS((K8-K21)*PI()/180)*J8","v":-3.6126319560861848},{"$f":"IF(K20+90>360,K20+90-360,K20+90)+180","v":204.57632662047911}]
["TCA",null,{"$f":"J22/(C20/60)","v":8.3874647581317081},null,null,"Zeitspanne bis zum CPA [min]",null,{"$f":"H21-H8","v":-1.5616657897648283},{"$f":"I21-I8","v":0.71420607036281636},{"$f":"SQRT((POWER(H22,2)+POWER(I22,2)))","v":1.7172333417054599},{"$f":"IF(K20+90>360,K20+90-360,K20+90)","v":24.576326620479108}]
[]
[]
[]
[]
[]
[]
[]
[]
[]
[]
[]
[null,null,null,null,null,null,"Head Up"]
[null,null,null,null,null,"Mgk",{"$f":"D4","v":130},null,null,null,null,null,"FdW",null,"Mgk"]
[null,null,null,null,null,null,null,null,null,null,null,"A",{"$f":"C4","v":6},"kn",{"$f":"D4","v":130},"grad"]
[null,null,null,null,null,null,null,null,null,null,null,null,"Distance",null,"RaSP"]
[null,null,null,null,null,null,null,null,null,null,null,"B1",{"$f":"C6","v":5},"sm",{"$f":"D6","v":100},{"$f":"E6","v":"11:36:00"}]
[null,null,null,null,null,null,null,null,null,null,null,"B2",{"$f":"C7","v":4},"sm",{"$f":"D7","v":90},{"$f":"E7","v":"11:48:00"}]
[]
[null,null,null,null,null,null,null,null,null,null,null,"KBrel",{"$f":"C10","v":9.2361993922874781},"kn",{"$f":"D10","v":37.783230918337495},"grad"]
[null,null,null,null,null,null,null,null,null,null,null,"CPA",{"$f":"C11","v":3.7030398413796295},"sm",{"$f":"D11","v":"stb"},"Passierseite"]
[null,null,null,null,null,null,null,null,null,null,null,"TCPA",{"$f":"C12","v":9.8251257093712194},"min"]
[null,null,null,null,null,null,null,null,null,null,null,"KBabs",{"$f":"C13","v":13.151819742574045},"kn",{"$f":"D13","v":61.587752560170372},"grad"]
[null,null,null,null,null,null,null,null,null,null,null,null,"FdW",null,"Mgk"]
[null,null,null,null,null,null,null,null,null,null,null,"A new",{"$f":"C15","v":6},"kn",{"$f":"D15","v":130},"grad"]
[null,null,null,null,null,null,null,null,null,null,null,"Kbrelnew",{"$f":"C20","v":12.284284163749884},"kn",{"$f":"D20","v":34.576326620479108}]
[null,null,null,null,null,null,null,null,null,null,null,"CPA",{"$f":"C21","v":3.6126319560861848},"sm",{"$f":"D21","v":"stb"},"Passierseite"]
[null,null,null,null,null,null,null,null,null,null,null,"TCA",8.3874647581317081,"min"]

{"sheet":"gezeiten","index":5,"n_rows":46,"n_cols":24,"rows_kept":46,"cut":false,"hidden":false,"merged":[]}
["Länge","LwL",10,"m"]
["Tiefgang","TG",2.1,"m"]
["Höhe","h",12,"m"]
["Std Port","Gravillnes",1569,null,null,null,null,"Alter der Gezeit",null,null,null,null,null,null,null,null,null,null,null,null,null,null,"SAb ",10]
["Sec Port","Dunkerque",1568,null,null,null,{"$f":"G6+2","v":"2005-04-03T12:00:00"},"neap",{"$f":"IF($C$8>G8,IF($C$8>G6,\"neap\",),)","v":0}]
[null,"2.","1.","2.","3.",null,{"$f":"G7+3","v":"2005-04-01T12:00:00"},"mid",{"$f":"IF($C$8>$G$8,IF(AND($C$8>G7,$C$8<G6),\"mid\",),)","v":0},null,null,null,null,null,null,null,null,null,null,"DH",10]
["aus Tabelle Std Port","1. NM/VM vor","Datum","1. NM/VM nach","Springverspätung","HHW",{"$f":"G8+2","v":"2005-03-29T12:00:00"},"spring",{"$f":"IF($C$8>$G$8,IF(AND($C$8>#REF!,$C$8<G7),\"sping\",),)","v":0},null,null,null,null,null,null,null,null,null,null,null,null,null,"HS",10]
["NM / VM (aus Tabelle)","2005-03-10T12:00:00","2005-03-23T14:00:00","2005-03-25T12:00:00",2,null,{"$f":"IF(ABS(DAYS360(C8,B8,1))<ABS(DAYS360(C8,D8,1)),B8+E8,D8+E8)","v":"2005-03-27T12:00:00"},"HHW"]
[null,null,"UTC",null,null,null,{"$f":"G8-2","v":"2005-03-25T12:00:00"},"spring",{"$f":"IF($C$8<$G$8,IF(AND($C$8<G8,$C$8>G9),\"spring\",),)","v":0}]
[null,null,null,null,null,null,{"$f":"G9-3","v":"2005-03-22T12:00:00"},"mid",{"$f":"IF($C$8<$G$8,IF(AND($C$8<G9,$C$8>G10),\"mid\",),)","v":"mid"}]
[null,null,null,null,null,null,{"$f":"G10-2","v":"2005-03-20T12:00:00"},"neap",{"$f":"IF($C$8<$G$8,IF(AND($C$8<G10,$C$8>G11),\"neap\",),)","v":0}]
["HW / NW from Std to Sec Port",null,null,null,null,null,null,null,null,null,null,null,null,null,null,"H",10,null,null,null,null,null,"TG",10]
[null,"NW",null,"HW",null,"NW",null,"HW",null,null,null,null,"WT",10]
[null,"Zeit NW","H NW","Zeit HW","H HW","Zeit NW","Zeit HW","Zeit HW","H HW"]
["Std Port","06:18:00",1.1000000000000001,"11:53:00",5.4,"18:36:00",1.1000000000000001,"12:30:00",5.4]
["- SC Std Port",null,-0.1,null,{"$f":"C16","v":-0.1},null,{"$f":"C16","v":-0.1},null,{"$f":"G16","v":-0.1},null,null,null,null,null,null,"KT",10,null,null,null,null,null,"SA",10]
["Std Port corrected",null,{"$f":"C15-C16","v":1.2000000000000002},null,{"$f":"E15-E16","v":5.5},null,{"$f":"G15-G16","v":1.2000000000000002},null,{"$f":"I15-I16","v":5.5}]
["Difference (std Port - Sec port",{"$f":"G38","v":1.1428571428571441},{"$f":"B38","v":-0.1},{"$f":"G27","v":-8.5277777777777786},{"$f":"B27","v":0.2},{"$f":"H38","v":1.5714285714285738},{"$f":"C38","v":-0.1},{"$f":"H27","v":-7.5},{"$f":"C27","v":0.2}]
["+ SC Sec Port",null,-0.1,null,{"$f":"C19","v":-0.1},null,{"$f":"C19","v":-0.1},null,{"$f":"G19","v":-0.1}]
["Sec Port [MEZ]",{"$f":"B15+(B18/1440)","v":"06:19:08.571"},{"$f":"C17+C18+C19","v":1},{"$f":"D15+(D18/1440)","v":"11:44:28.333"},{"$f":"E17+E18+E19","v":5.6000000000000005},{"$f":"F15+(F18/1440)","v":"18:37:34.286"},{"$f":"G17+G18+G19","v":1},{"$f":"H15+(H18/1440)","v":"12:22:30"},{"$f":"I17+I18+I19","v":5.6000000000000005},"MEZ"]
["HW / NW at Board Time",{"$f":"VLOOKUP($J20,timediff,MATCH($J21,timediffindex,0),0)+B20","v":"05:19:08.571"},{"$f":"C20","v":1},{"$f":"VLOOKUP($J20,timediff,MATCH($J21,timediffindex,0),0)+D20","v":"10:44:28.333"},{"$f":"E20","v":5.6000000000000005},{"$f":"VLOOKUP($J20,timediff,MATCH($J21,timediffindex,0),0)+F20","v":"17:37:34.286"},{"$f":"G20","v":1},{"$f":"H20","v":0.515625},{"$f":"VLOOKUP($J20,timediff,MATCH($J21,timediffindex,0),0)+I20","v":5.5583333333333336},{"$f":"C9","v":"UTC"}]
[null,"-->  use Board Time (times, h) in tide table to evaluate H at specific times at Sec Port"]
[]
["Differences"]
[]
["H dezi",{"$f":"E17","v":5.5},{"$f":"I17","v":5.5},"m",null,"Uhrzeit dezi",{"$f":"D15*24","v":11.883333333333333},{"$f":"H15*24","v":12.5},"stunden"]
["Hdiff (HUG)",{"$f":"$C30+($B30-$C30)*((B26-$B29)/($C29-$B29))","v":0.2},{"$f":"$C30+($B30-$C30)*((C26-$B29)/($C29-$B29))","v":0.2},"m",null,"Zeitdiff (ZUG)",{"$f":"IF(AND(G26>$G29,G26<$H29),G32,IF(AND(G26>$H29,G26<$G30),G33,IF(AND(G26>$G30,G26<$H30),G34,IF(AND(G26>$H30,G26<$G29),G35,\"?\"))))","v":-8.5277777777777786},{"$f":"IF(AND(H26>$G29,H26<$H29),H32,IF(AND(H26>$H29,H26<$G30),H33,IF(AND(H26>$G30,H26<$H30),H34,IF(AND(H26>$H30,H26<$G29),H35,\"?\"))))","v":-7.5},"min"]
["HW H",null,null,null,null,"HW Zeit"]
["Std Port",6,5,"m",null,"std Port",2,8,"uhrzeit"]
["Sec Port",0.3,0.1,"m",null,null,14,20]
[null,null,null,null,null,"Sec Port",-5,-15,"min"]
[null,null,null,null,null,null,{"$f":"$H31+($G31-$H31)*((G26-$G29)/($H29-$G29))","v":1.4722222222222214},{"$f":"$H31+($G31-$H31)*((H26-$G29)/($H29-$G29))","v":2.5},{"$f":"CONCATENATE(\" >\",G29,\" & <\",H29)","v":" >2 & <8"}]
[null,null,null,null,null,null,{"$f":"$H31+($G31-$H31)*((G26-$H29)/($G30-$H29))","v":-8.5277777777777786},{"$f":"$H31+($G31-$H31)*((H26-$H29)/($G30-$H29))","v":-7.5},{"$f":"CONCATENATE(\" >\",H29,\" & <\",G30)","v":" >8 & <14"}]
[null,null,null,null,null,null,{"$f":"$H31+($G31-$H31)*((G26-$G30)/($H30-$G30))","v":-18.527777777777779},{"$f":"$H31+($G31-$H31)*((H26-$G30)/($H30-$G30))","v":-17.5},{"$f":"CONCATENATE(\" >\",G30,\" & <\",H30)","v":" >14 & <20"}]
[null,null,null,null,null,null,{"$f":"$H31+($G31-$H31)*((G26-$H30)/($G29-$H30))","v":-10.49074074074074},{"$f":"$H31+($G31-$H31)*((H26-$H30)/($G29-$H30))","v":-10.833333333333332},{"$f":"CONCATENATE(\" >\",H30,\" & <\",G29)","v":" >20 & <2"}]
[]
["H dezi",{"$f":"C17","v":1.2000000000000002},{"$f":"G17","v":1.2000000000000002},"m",null,"Uhrzeit dezi",{"$f":"B15*24","v":6.3000000000000007},{"$f":"F15*24","v":18.600000000000001},"stunden"]
["Hdiff (HUG)",{"$f":"$C41+($B41-$C41)*((B37-$B40)/($C40-$B40))","v":-0.1},{"$f":"$C41+($B41-$C41)*((C37-$B40)/($C40-$B40))","v":-0.1},"m",null,"Zeitdiff (ZUG)",{"$f":"IF(AND(G37>$G40,G37<$H40),G43,IF(AND(G37>$H40,G37<$G41),G44,IF(AND(G37>$G41,G37<$H41),G45,IF(AND(G37>$H41,G37<$G40),G46,\"?\"))))","v":1.1428571428571441},{"$f":"IF(AND(H37>$G40,H37<$H40),H43,IF(AND(H37>$H40,H37<$G41),H44,IF(AND(H37>$G41,H37<$H41),H45,IF(AND(H37>$H41,H37<$G40),H46,\"?\"))))","v":1.5714285714285738},"min"]
["NW H",null,null,null,null,"NW Zeit"]
["Std Port",1.5,0.6,"m",null,"Std Port",2,9,"urhzeit"]
["Sec Port",-0.1,-0.1,"m",null,null,14,21]
[null,null,null,null,null,"Sec Port",-5,5,"min"]
[null,null,null,null,null,null,{"$f":"$G42+($H42-$G42)*((G37-$G40)/($H40-$G40))","v":1.1428571428571441},{"$f":"$G42+($H42-$G42)*((H37-$G40)/($H40-$G40))","v":18.714285714285715},{"$f":"CONCATENATE(\" >\",G40,\" & <\",H40)","v":" >2 & <9"}]
[null,null,null,null,null,null,{"$f":"$G42+($H42-$G42)*((G37-$H40)/($G41-$H40))","v":-10.399999999999999},{"$f":"$G42+($H42-$G42)*((H37-$H40)/($G41-$H40))","v":14.200000000000003},{"$f":"CONCATENATE(\" >\",H40,\" & <\",G41)","v":" >9 & <14"}]
[null,null,null,null,null,null,{"$f":"$G42+($H42-$G42)*((G37-$G41)/($H41-$G41))","v":-15.999999999999998},{"$f":"$G42+($H42-$G42)*((H37-$G41)/($H41-$G41))","v":1.5714285714285738},{"$f":"CONCATENATE(\" >\",G41,\" & <\",H41)","v":" >14 & <21"}]
[null,null,null,null,null,null,{"$f":"$G42+($H42-$G42)*((G37-$H41)/($G40-$H41))","v":2.7368421052631575},{"$f":"$G42+($H42-$G42)*((H37-$H41)/($G40-$H41))","v":-3.7368421052631584},{"$f":"CONCATENATE(\" >\",H41,\" & <\",G40)","v":" >21 & <2"}]

{"sheet":"grenzkurs","index":6,"n_rows":26,"n_cols":10,"rows_kept":26,"cut":false,"hidden":false,"merged":[]}
[null,"Grenzkurs Berechnung"]
[]
["Eigener Kurs","rwk",70]
["Peilung Gegner","SP",155,null,null,null,112.5]
[null,"rwp",{"$f":"C3+C4","v":225},null,null,225,null,135]
[null,null,null,null,null,null,112.5]
["Was sehe ich vom Gegner?","grün/weiß",{"$f":"F11","v":292.5},"Grenzkurs"]
[]
[null,null,null,null,null,null,"Kurs Gegner"]
[null,"Lichter zu sehen",null,null,null,"Grenzkurs","von","bis"]
[null,"grün/rot","Gegenkurs","GK1",0,{"$f":"IF((C5+VLOOKUP(B7,B11:E20,4,0))+180>360,(C5+VLOOKUP(B7,B11:E20,4,0))+180-360,(C5+VLOOKUP(B7,B11:E20,4,0))+180)","v":292.5},{"$f":"F11-5","v":287.5},{"$f":"F11+5","v":297.5},null,"=rwp+180"]
[null,"grün","112,5° nach Stb","GKg",{"$f":"-112.5/2","v":-56.25},{"$f":"IF(G11+5>360,G11+5-360,G11+5)","v":292.5},{"$f":"F12+5","v":297.5},null,null,"=GK1+5"]
[null,"grün","112,5° nach Stb","GKg",{"$f":"-112.5/2","v":-56.25},{"$f":"IF(F12+112.5>360,F12+112.5-360,F12+112.5)","v":45},null,{"$f":"F13-5","v":40},null,"=GK1+112,5-5"]
[null,"grün/weiß","112,5° nach Stb","GKg",-112.5,{"$f":"F13","v":45},{"$f":"F14-5","v":40},{"$f":"F14+5","v":50},null,"=GK1+112,5+-5"]
[null,"weiß","rwp +- 67,5°","GKw",-180,{"$f":"F14","v":45},{"$f":"F15+5","v":50},null,null,"=rwk-SP+67,5+5"]
[null,"weiß","rwp +- 67,5°","GKw",-180,{"$f":"IF(F15+135>360,F15+135-360,F15+135)","v":180},null,{"$f":"F16-5","v":175},null,"=rwk+SP+67,5-5"]
[null,"rot/weiß","112,5° nach Bkb","GKr",{"$f":"E16+-67.5","v":-247.5},{"$f":"F16","v":180},{"$f":"F17-5","v":175},{"$f":"F17+5","v":185},null,"=GK1-112,5+-5"]
[null,"rot","112,5° nach Bkb","GKr",{"$f":"E17+-112.5/2","v":-303.75},{"$f":"F17","v":180},{"$f":"F18+5","v":185},null,null,"=GK1-112,5+5"]
[null,"rot","112,5° nach Bkb","GKr",{"$f":"E18","v":-303.75},{"$f":"IF(F18+112.5>360,F18+112.5-360,F18+112.5)","v":292.5},null,{"$f":"F19-5","v":287.5},null,"=GK1-112,5+5"]
[null,"rot/grün","Gegenkurs","GK1",0,{"$f":"F19","v":292.5},{"$f":"F20-5","v":287.5},{"$f":"F20+5","v":297.5},null,"=rwp+180"]
[]
[0.98480775301220802,"rad"]
[79.999999999999986,"asin"]
[202.5,"Rotation"]
[-1.1780972450961722]
[-0.92387953251128663]

{"sheet":"wind","index":7,"n_rows":29,"n_cols":9,"rows_kept":29,"cut":false,"hidden":false,"merged":[]}
["Windbeschickung"]
[null,null,"°","kn"]
["rwk",null,180,5,"kn"]
["WindRichtung / Geschw.","NE",{"$f":"VLOOKUP(B4,WindVon,2,0)","v":45},5," Scheinbarer Wind"]
["WindRichtung / Geschw.",7.0710678118654755,180,9.2387953251128661,"wahrer Wind"]
[]
["wind auf",{"$f":"IF(IF(C4-C3<0,C4-C3+360,C4-C3)>180,\"bkb\",\"stb\")","v":"bkb"},"aus SP",{"$f":"IF(C4-C3>180,360-(C4-C3),C4-C3)","v":-135}]
["kurs",{"$f":"VLOOKUP(ABS(D7),KurszumWind,2,-1)","v":"raum"}]
["BW",{"$f":"VLOOKUP(B8,WindVorhalte,2,0)*IF(B7=\"stb\",-1,1)","v":2},"°"]
[]
[]
[]
["Vorhaltewinkel bei kn Wind (Erfahrungswerte)",null,null,null,null,null,null,"Wendewinkel",70]
["Windgeschwindigkeit [kn]",5,10,20,30,40,null,"KurszumWind","Kurs"]
[{"$f":"I15","v":"gegen"},0,0,0,0,0,null,0,"gegen"]
["amwind",5,10,15,20,25,null,{"$f":"I13/2","v":35},"amwind"]
["halbwind",4,9,14,18,22,null,70,"halbwind"]
["raum",2,5,10,10,10,null,110,"raum"]
["vorwind",0,0,0,0,0,null,160,"vorwind"]
["vor",0,0,0,0,0,null,180,"vor"]
[]
[]
[]
[]
[]
[]
[]
[]
["Maßstab",1]

{"sheet":"Peilung-Beobachtung","index":8,"n_rows":29,"n_cols":7,"rows_kept":29,"cut":false,"hidden":false,"merged":[]}
[]
["Beschickung Seitenpeilung in rechtweisende Peilung"]
[]
["rwk",90]
[]
["Peilscheibe"]
["SP",53,{"$f":"C9-C8","v":53}]
["rwK",90,{"$f":"B8","v":90}]
["rwP",{"$f":"B7+B8","v":143},{"$f":"B9","v":143}]
[]
["Handpeilung"]
["MgP",120,{"$f":"C14-C13","v":120}]
["Abl",0,0,"da nicht bekannt"]
["mwP",{"$f":"B12+B13","v":120},{"$f":"C16-C15","v":120}]
["Mw",-3,-3]
["rwP",{"$f":"B12+B15","v":117},{"$f":"B16","v":117}]
[]
["Steuerkompass"]
["MgP",120,{"$f":"C21-C20","v":120}]
["Abl",9,9]
["mwP",129,129]
["MW",-3.4999999999999996,-3.4999999999999996]
["rwP",{"$f":"B21+B22","v":125.5},{"$f":"B23","v":125.5}]
[]
[]
["Feuer in der KIM"]
["Augenhöhe",2,"m",null,null,null,"Ah"]
["Objekthöhe",4,"m",null,null,null,"h"]
["FiK",{"$f":"2.075*(SQRT(B27)+SQRT(B28))","v":7.084493141924173},"sm",{"$f":"B29/smtokm","v":3.8253202710173717},"km",null,"FiK / Radius"]

{"sheet":"Formeln","index":9,"n_rows":10,"n_cols":7,"rows_kept":10,"cut":false,"hidden":false,"merged":[]}
[]
["Rumpfgeschindigkeit"]
["Lwl",{"$f":"Ablenkung!#REF!","v":{"$error":"#REF!"}},"kn"]
["Vrumpf",{"$f":"2.43*SQRT(B3)","v":{"$error":"#REF!"}},"km / h",{"$f":"B4/smtokm","v":{"$error":"#REF!"}},"km / h"]
[null,null,null,null,5]
["Umrechnungen"]
[1,"km/h",null,null,7]
[{"$f":"formulars!A12","v":"NNE"},"kn/h"]
[]
[5,"sm",5,"kn","   --> ",{"$f":"formulars!A28","v":0},{"$f":"formulars!B28","v":0}]

{"sheet":"Wind-Welle","index":10,"n_rows":15,"n_cols":28,"rows_kept":15,"cut":false,"hidden":false,"merged":[]}
["Windstärken",null,null,null,"Staudruck","Staudruck",null,"Bezeichnung der Windstärke","Bezeichnung (english)","Auswirkungen","Beschreibung","Beschreibung",null,"Seegang",null,null,null,"Wellenlänge","Wellenhöhe (m)","Wellenhöhe (m)","Wave height (m)","Wave height (m)"]
["(Bft) ","kn","m/s","km/h","      kg/m²      ","      N/m²      ",null,null,null,null,"Wirkung an Land","Wirkung auf dem Meer",null,null,"Seegang nach Petersen","Bezeichnung (Windsee)","Wave","m","Tiefsee (Atlantik)","Flachsee (Ostsee)","probable","maximum",null,"kn","kn","kn to Bft\n(feedern)","(Bft) ","(Bft) "]
[0,"0-1","0-0,02","0-1","<1","−",null,"Windstille","calm","keine Luftbewegung, spiegelglatte See","Keine Luftbewegung, Rauch steigt senkrecht empor","Spiegelglatte See",null,"glatte See",0,"Völlig ruhige, glatte See","-","−","−","−","-","-",null,0,null,null,0]
[1,"1-4","0,3-1,5","2-5","0 − 0,1","0 − 1",null,"Leiser Zug","light air","Luftbewgung an Rauch erkennbar, kleine Kräuselwellen","Kaum merklich, Rauch treibt leicht ab, Windflügel und Windfahnen unbewegt","Kleine schuppenförmig aussehende Kräuselwellen ohne Schaumköpfe",null,"sehr ruhige See",1,"Ruhige, gekräuselte See","Ripples","< 5","0,0 − 0,2",0.05,"0.1","0.1",null,2,null,"+1",1]
[2,"4-7","1,6-3,3","6-11","0,2 − 0,6","2 − 6",null,"Leichte Brise","light breeze","Wind spürbar, kleine Wellen","Blätter rascheln, Wind im Gesicht spürbar","Kleine, kurze Wellen, Oberfläche glasig",null,"ruhige See",2,"Schwach bewegte See","Small wavelets","< 15","0,5 − 0,75",0.6,"0.2","0.3",null,5,null,"+1",2]
[3,"7-11","3,4-5,4","12-19","0,7 − 1,8","7 − 18",null,"Schwache Brise","gentle breeze","Blätter an Bäumen werden bewegt, vereinzelt weiße Schaumkronen auf den Wellen","Blätter und dünne Zweige bewegen sich, Wimpel werden gestreckt","Kämme beginnen sich zu brechen. Anfänge der Schaumbildung",null,null,null,null,"Large wavelets","< 25",null,null,"0.6","1.0",null,10,null,"+1",3]
[4,"11-16","5,5-7,9","20-28","1,9 − 3,9","19 − 39",null,"Mäßige Brise","moderate breeze","Zweige werden bewegt, noch kleine Wellen, jedoch mehr kleine Schaumkronen","Zweige bewegen sich, loses Papier wird vom Boden gehoben","Kleine, länger werdende Wellen, ziemlich verbreitet Schaumköpfe",null,"leicht bewegte See",3,"Leicht bewegte See","Small waves","< 50","0,8 − 1,2",1,"1.0","1.5",null,15,null,"+1",4]
[5,"16-21","8,0-10,7","29-38","4,0 − 7,2","40 − 72",null,"Frische Brise","fresh breeze","Kleinere Bäume werden bewegt, auf allen Welle weiße Schaumkronen ","Größere Zweige und Bäume bewegen sich, Schaumköpfe auf Seen","Wind deutlich hörbar; mäßige Wellen von großer Länge, überall Schaumköpfe",null,"mäßig bewegte See",4,"Mäßig bewegte See","Moderate waves","< 75","1,2 − 2,0",1.5,"2.0","2.5",null,20,null,"+1",5]
[6,"22-27","10,8-13,8","39-49","7,3 − 11,9","73 − 119",null,"Starker Wind","strong breeze","Bäume werden bewegt, Bildung größerer Wellen, die Kämme brechen, vereinzelt Gischt","Dicke Äste bewegen sich, hörbares Pfeifen an Drahtseilen, in Telefonleitungen","Größere Wellen mit brechenden Köpfen, überall weiße Schaumflecken. Etwas Gischt",null,"ziemlich grobe See",5,"Grobe See","Large waves","< 100","2,0 − 3,5",2.2999999999999998,"3.0","4.0",null,25,null,"+1",6]
[7,"28-33","13,9-17,1","50-61","12,0 − 18,3","120 − 183",null,"Steifer Wind","moderate gale (or near gale)","Das Gehen gegen den Wind wird schwieriger, Wellenkämme brechen, Schaumkronen werden weggeweht","Bäume schwanken, Widerstand beim Gehen gegen den Wind","Weißer Schaum von den brechenden Wellenköpfen legt sich in Schaumstreifen in die Windrichtung",null,"grobe See",6,"Sehr grobe See","Large waves","< 135","3,5 − 6,0",3,"4.0","5.5",null,30,null,"+1",7]
[8,"34-40","17,2-20,7","62-74","18,4 − 26,8","184 − 268",null,"Stürmischer Wind","fresh gale (or gale)","Zweige werden abgebrochen, Gehen wird schwierig, mäßig hohe Wellen, Gischt beginnt abzuwehen","Große Bäume werden bewegt, Zweige brechen von Bäumen, beim Gehen erhebliche Behinderung","Mäßig hohe Wellenberge, deren Köpfe verweht werden, ausgeprägte Schaumstreifen",null,"hohe See",7,"Hohe See","Moderately high waves","< 150","mehr als 6,0",4,"6.0","7.5",null,40,null,null,8]
[9,"41-47","20,8-24,4","75-88","26,9 − 37,3","269 − 373",null,"Sturm","strong gale","vereinzelt werden Dachziegel abgehoben, höhere Wellenberge, Gischt beeinträchtigt die Sicht","Äste brechen, Ziegel werden von Dächern gehoben","Hohe Wellen mit verwehtem Gischt, Brecher beginnen sich zu bilden (\"Rollen\")",null,null,null,null,"High waves","< 200",null,null,"7.0","10.0",null,45,null,null,9]
[10,"48-55 ","24,5-28,4","89-102","37,4 − 50,5","374 − 505",null,"Schwerer Sturm","whole gale (or storm)","Bäume werden entwurzelt, es entstehen hohe Wellenberge, überbrechende, lange Kömme, See weiß wie Schaum","Bäume werden entwurzelt, Häuser beschädigt; selten im Landesinneren","Sehr hohe Wellen, weiße Flecken auf dem Wasser, lange, überbrechende Kämme, schwere Brecher",null,"sehr hohe See",8,"Sehr hohe See","Very high waves","< 250","bis 20,0",5.5,"9.0","12.5",null,50,null,null,10]
[11,"56-63","28,5-32,6","103-117","50,6 − 66,5","506 − 665",null,"Orkanartiger Sturm","storm (or violent storm)","ist mit schweren Strumschäden verbunden, sehr hohe See, starke Gischt in der Luft, stark herabgesetzte Sicht","Heftige Böen, schwere Sturmschäden; sehr selten im Binnenland","Brüllende See, Wasser wird waagerecht weggeweht, starke Sichtverminderung",null,"äußerst schwere See",9,"Außergewöhnlich schwere See","Exceptionally high waves","< 300","über 20,0","−","2013-05-11","16.0",null,60,null,"-1",11]
[12,"<63","<32,6","<117","> 66,6","> 666",null,"Orkan","hurricane","schwerste Verwüstungen, extrem hohe Wellen, See vollständig weiß. Luft mit Gischt erfüllt","Schwere Sturmschäden und Verwüstungen; sehr selten im Landesinneren","See vollkommen weiß, Luft mit Schaum und Gischt gefüllt, keine Fernsicht mehr",null,null,null,null,"Exceptionally high waves","> 300",null,null,"14.0","> 16",null,65,null,"-1",12]

{"sheet":"Wolken","index":11,"n_rows":74,"n_cols":14,"rows_kept":74,"cut":false,"hidden":false,"merged":[]}
["http://de.wikipedia.org/wiki/Wolke "]
["Gattungen","Arten","Unterarten","Sonderformen, Begleitwolken","Mutterwolken (Genitus)","Bilder"]
["Cirrus (Ci)","fibratus","intortus","mamma","Cirrocumulus",null,null,null,null,"Haufen","Schicht",null,null,"vertikal"]
["(Federwolke)","uncinus","radiatus",null,"Altocumulus",null,null,"Wolken",null,"Cumulus","Stratus",null,null,"Nimbo"]
[null,"spissatus","vertebratus",null,"Cumulonimbus",null,null,"Hohe","Cirro","Cc","Cs",null,null,"Cirrus"]
[null,"castellanus","duplicatus",null,null,null,null,"'5-13km"]
[null,"floccus"]
[]
[null,null,null,null,null,null,null,"Mittelhohe","Alto","Ac","As"]
["Cirrocumulus (Cc)","stratiformis","undulatus","virga",null,null,null,"'2-7km"]
["(kleine Schäfchenwolke)","lenticularis","lacunosus","mamma"]
[null,"castellanus"]
[null,"floccus",null,null,null,null,null,"Tiefe","Strato","Cu","St",null,"Ns","Cn"]
[null,null,null,null,null,null,null,"2km"]
[]
[null,null,null,null,null,null,null,null,null,null,null,null,"Nimbus","CumuluNimbus"]
["Cirrostratus (Cs)","fibratus","duplicatus",null,"Cirrocumulus",null,null,null,null,"CirroCumulus","CirroStratus"]
["(hohe Schleierwolke)","nebulosus","undulatus",null,"Cumulonimbus",null,null,null,null,"AltoCumulus","AltoStratus"]
[null,null,null,null,null,null,null,null,null,"Cumulus","Stratus"]
[]
[]
[]
[]
["Altocumulus (Ac)","stratiformis","perlucidus","virga","Cumulus"]
["(große Schäfchenwolke)","lenticularis","translucidus","mamma","Cumulonimbus"]
[null,"castellanus","opacus"]
[null,"floccus","duplicatus"]
[null,null,"undulatus"]
[null,null,"radiatus"]
[null,null,"lacunosus"]
["Altostratus (As)",null,"translucidus","virga","Altocumulus"]
["(mittelhohe Schichtwolke)",null,"opacus","praecipitatio","Cumulonimbus"]
[null,null,"duplicatus","pannus"]
[null,null,"undulatus","mamma"]
[null,null,"radiatus"]
[]
[]
["Stratocumulus (Sc)","stratiformis","perlucidus","mamma","Altostratus"]
["(Haufenschichtwolke)","lenticularis","translucidus","virga","Nimbostratus"]
[null,"castellanus","opacus","praecipitatio","Cumulus"]
[null,null,"duplicatus",null,"Cumulonimbus"]
[null,null,"undulatus"]
[null,null,"radiatus"]
[null,null,"lacunosus"]
["Stratus (St)","nebulosus","opacus","praecipitatio","Nimbostratus"]
["(tiefe Schichtwolken)","fractus","translucidus",null,"Cumulus"]
[null,null,"undulatus",null,"Cumulonimbus"]
[]
[]
[]
[]
["Cumulus (Cu)","humilis","radiatus","pileus","Altocumulus"]
["(Haufenwolken)","mediocris",null,"velum","Stratocumulus"]
[null,"congestus",null,"virga"]
[null,"fractus",null,"praecipitatio"]
[null,null,null,"arcus"]
[null,null,null,"pannus"]
[null,null,null,"tuba"]
["Nimbostratus (Ns)",null,null,"praecipitatio","Cumulus"]
["(Regenwolken)",null,null,"virga","Cumulonimbus"]
[null,null,null,"pannus"]
[]
[]
[]
[]
["Cumulonimbus (Cb)","calvus",null,"praecipitatio","Altocumulus"]
["(Gewitterwolken)","capillatus",null,"virga","Altostratus"]
[null,null,null,"pannus","Nimbostratus"]
[null,null,null,"incus","Stratocumulus"]
[null,null,null,"mamma","Cumulus"]
[null,null,null,"pileus"]
[null,null,null,"velum"]
[null,null,null,"arcus"]
[null,null,null,"tuba"]

{"sheet":"formulars","index":12,"n_rows":59,"n_cols":14,"rows_kept":59,"cut":false,"hidden":false,"merged":[]}
["formulars & basic data & factors"]
[]
["Rumpfgeschwindigkeit [kn]","=2,43*SQRT(Lwl)"]
["Feuer in der Kim [sm]","=2,075*(SQRT(Augenhöhe)+SQRT(Objekthöhe))"]
["Wassertiefe [m]","= Kartentiefe + Höhe der Gezeit"]
[]
["Umrechnungen","1 Seemeile = 1,852 Kilometer = 1852 m",1.8520000000000001,"smtokm"]
[null,"1 Kilometer = 0,5400 Seemeilen",0.54,"kmtosm"]
[]
["WindRichtung","WindVon"]
["N",0]
["NNE",{"$f":"90/2/2","v":22.5}]
["NE",{"$f":"$B$12+B12","v":45}]
["ENE",{"$f":"$B$12+B13","v":67.5}]
["E",90]
["ESE",112.5]
["SE",135]
["SSE",157.5]
["S",180]
["SSW",202.5]
["SW",225]
["WSW",247.5]
["W",270]
["WNW",292.5]
["NW",315]
["NNW",337.5]
["N",360]
[]
[]
[]
[]
[1,{"$f":"Kurs!#REF!","v":{"$error":"#REF!"}}]
[{"$f":"A32*VLOOKUP($B$32,$A$35:$H$41,MATCH($B$33,$A$34:$H$34,0),0)","v":{"$error":"#REF!"}},{"$f":"Kurs!#REF!","v":{"$error":"#REF!"}},"1 Faden = 1/100 Kabellänge = 1/1000 Seemeile = 1,852 m"]
[null,"km","sm","kbl","fm","km/h","kn/h"]
["km",1,1.8520000000000001,18.52,1852]
["sm",{"$f":"1/1.852","v":0.5399568034557235},1,10,1000]
["kbl",{"$f":"1/18.52","v":5.3995680345572353E-2},{"$f":"1/10","v":0.1},1,100]
["fm",{"$f":"1/1852","v":5.3995680345572358E-4},{"$f":"1/1000","v":1E-3},{"$f":"1/100","v":0.01},1]
["km/h",null,null,null,null,1,{"$f":"1/1.852","v":0.5399568034557235}]
["kn/h",null,null,null,null,1.8520000000000001,1]
[]
[]
[]
[]
[]
[]
[{"$f":"Kurs!#REF!","v":{"$error":"#REF!"}},{"$f":"Kurs!#REF!","v":{"$error":"#REF!"}}]
[{"$f":"Kurs!#REF!","v":{"$error":"#REF!"}},{"$f":"Kurs!#REF!","v":{"$error":"#REF!"}}]
[{"$f":"VLOOKUP($B$47,$A$50:$D$53,MATCH($B$48,$A$50:$D$50,0),0)","v":{"$error":"#REF!"}},{"$f":"VLOOKUP($B$47,$F$50:$I$53,MATCH($B$48,$F$50:$I$50,0),0)","v":{"$error":"#REF!"}}]
[null,"min","sm","kn",null,null,"min","sm","kn"]
["min",1,{"$f":"A47/60*A48","v":{"$error":"#REF!"}},{"$f":"A47/60*A48","v":{"$error":"#REF!"}},null,{"$f":"A51","v":"min"},"min","kn","sm",null,null,null,2.5]
["sm",{"$f":"A47/60*A48","v":{"$error":"#REF!"}},1,{"$f":"A47*60/A48","v":{"$error":"#REF!"}},null,{"$f":"A52","v":"sm"},"kn","sm","min",null,null,null,4.1666666666666664E-2,{"$f":"M52*24","v":1}]
["kn",{"$f":"A47/60*A48","v":{"$error":"#REF!"}},{"$f":"A47*60/A48","v":{"$error":"#REF!"}},1,null,{"$f":"A53","v":"kn"},"sm","min","kn"]
[]
[]
["from ↓ to → ","UTC","MEZ","MESZ"]
["UTC",0,4.1666666666666664E-2,8.3333333333333329E-2]
["MEZ",-4.1666666666666699E-2,"00:00:00",4.1666666666666664E-2,"TimeZone-0100",null,"Europe"]
["MESZ",-8.3333333333333301E-2,-4.1666666666666699E-2,"00:00:00"]

{"sheet":"KVR","index":13,"n_rows":91,"n_cols":2,"rows_kept":91,"cut":false,"hidden":false,"merged":[]}
["KVR","Kollisionsverhütungsregeln (KVR)"]
[null,"Teil A Allgemeines (Regel 1 bis Regel 3)"]
[null,"Teil B Ausweich- und Fahrregeln ( Regel 4 bis Regel 1 9)"]
[null,"Teil C Lichter und Signalkörper (Regel 20 bis Regel 31)"]
[null,"Teil D Schall- und Lichtsignale (Regel 3 2 bis Regel 37)"]
[null,"Teil E Befreiungen (Regel 38)"]
[]
[null,"Kollisionsverhütungsregeln"]
[]
[null,"Die Kollisionsverhütungsregeln (KVR) - offiziell „Internationale Regeln von 1972 zur Verhütung von Zusammenstößen auf See“ - stellen internationales Seeverkehrsrecht dar. Sie sind der grundlegende rechtliche Rahmen zur Regelung der Sicherheit und Leichtigkeit des Verkehrs auf hoher See und den damit verbundenen Gewässern. Die KVR dienen der Vermeidung von Schiffszusammenstößen. Sie wurden 1972 von der IMO (UN-Unterorganisation für die Seeschifffahrt) verabschiedet und gelten für alle Schiffe, auch für Sportboote. Der Originaltitel lautet: Conventions on the International Regulations for Preventing Collisions at Sea (COLREGs)."]
[null,"Auf deutschen Seeschifffahrtsstraßen und bestimmten von Seeschiffen befahrenen Binnenwasserstrassen wie Elbe, Weser und Nord-Ostsee-Kanal gelten zusätzlich präzisierend die Seeschifffahrtsstraßen-Ordnung (SeeSchStrO) bzw. die Schifffahrtsordnung Emsmündung (EmsSchO). Die KVR sind aber trotzdem die grundlegenden Regeln des Seeschiffsverkehrs."]
[]
[null,"Die KVR enthalten folgende Bereiche:"]
[]
[null,"    Teil A: Allgemeines (Regeln 1-3, u. a. Anwendungsbereiche, Verantwortlichkeit und allgemeine Begriffsbestimmungen)."]
[]
[null,"    Teil B: Ausweich und Fahrregeln (Regeln 4-19, u.a. Ausweichen, Kurs halten, Manöver zur Vermeidung von Unfällen, Verhalten im Fahrwasser, Überholen, usw.)."]
[]
[null,"    Teil C: Lichterführung und Signalkörper (Regeln 20-31, u.a. Lichter, Navigationslichter und Signalkörper)."]
[]
[null,"    Teil D: Schall- und Lichtsignale (Regeln 32-37, u. a. Darstellung der Schallsignale, Schallsignalgeräte)."]
[]
[null,"    Teil E: Befreiungen (Regel 38)"]
[]
[null,"Zur Signalisierung von Fahrtrichtung und Position dienen die Positionslichter. Bei Kollisionskurs soll der Bevorrechtigte notfalls mit dem Manöver des letzten Augenblicks versuchen, eine Kollision zu vermeiden oder wenigstens die Schäden gering zu halten."]
[]
[null,"Rechtliche Grundlagen Deutschland"]
[]
[null,"In Deutschland, insbesondere im deutschen Küstenmeer und auf Schiffen, die berechtigt sind, die Bundesflagge zu führen, haben die KVR Geltung durch die Verordnung zu den Internationalen Regeln von 1972 zur Verhütung von Zusammenstößen auf See vom 13. Juni 1977 (BGBl. I S. 813), die zuletzt durch Artikel 2 der Verordnung vom 15. Januar 2012 (BGBl. I S. 112) geändert worden ist."]
[]
[]
["Teil A","Allgemeines"]
[" ","Regel 1 Anwendung"]
[" ","Regel 2 Verantwortlichkeit"]
[" ","Regel 3 Allgemeine Begriffsbestimmungen"]
[" "]
["Teil B","Ausweich- und Fahrregeln"]
[" "]
["Abschnitt I","Verhalten von Fahrzeugen bei allen Sichtverhältnissen"]
[" ","Regel 4 Anwendung"]
[" ","Regel 5 Ausguck"]
[" ","Regel 6 Sichere Geschwindigkeit"]
[" ","Regel 7 Möglichkeit der Gefahr eines Zusammenstoßes"]
[" ","Regel 8 Manöver zur Vermeidung von Zusammenstößen"]
[" ","Regel 9 Enge Fahrwasser"]
[" ","Regel 10 Verkehrstrennungsgebiete"]
[]
["Abschnitt II","Verhalten von Fahrzeugen, die einander in Sicht haben"]
[" ","Regel 11 Anwendung"]
[" ","Regel 12 Segelfahrzeuge"]
[" ","Regel 13 Überholen"]
[" ","Regel 14 Entgegengesetzte Kurse"]
[" ","Regel 15 Kreuzende Kurse"]
[" ","Regel 16 Maßnahmen des Ausweichpflichtigen"]
[" ","Regel 17 Maßnahmen des Kurshalters"]
[" ","Regel 18 Verantwortlichkeiten der Fahrzeuge untereinander"]
[]
["Abschnitt III","Verhalten von Fahrzeugen bei verminderter Sicht"]
[" ","Regel 19 Verhalten von Fahrzeugen bei verminderter Sicht"]
[]
["Teil C","Lichter und Signalkörper"]
[" ","Regel 20 Anwendung"]
[" ","Regel 21 Begriffsbestimmungen"]
[" ","Regel 22 Tragweite der Lichter"]
[" ","Regel 23 Maschinenfahrzeuge in Fahrt"]
[" ","Regel 24 Schleppen und Schieben"]
[" ","Regel 25 Segelfahrzeuge in Fahrt und Fahrzeuge unter Ruder"]
[" ","Regel 26 Fischereifahrzeuge"]
[" ","Regel 27 Manövrierunfähige oder manövrierbehinderte Fahrzeuge"]
[" ","Regel 28 Tiefgangbehinderte Fahrzeuge"]
[" ","Regel 29 Lotsenfahrzeuge"]
[" ","Regel 30 Fahrzeuge vor Anker und auf Grund"]
[" ","Regel 31 Wasserflugzeuge"]
[]
["Teil D","Schall- und Lichtsignale"]
[" ","Regel 32 Begriffsbestimmungen"]
[" ","Regel 33 Ausrüstung für Schallsignale"]
[" ","Regel 34 Manöver- und Warnsignale"]
[" ","Regel 35 Schallsignale bei verminderter Sicht"]
[" ","Regel 36 Aufmerksamkeitssignale"]
[" ","Regel 37 Notsignale"]
[]
["Teil E","Befreiungen"]
[" ","Regel 38 Befreiungen"]
[" ","Anlage I Anordnung und technische Einzelheiten der Lichter und Signalkörper"]
[" ","Anlage II Zusatzsignale für nahe beieinander fischende Fahrzeuge"]
[" ","Anlage III Technische Einzelheiten der Schallsignalanlagen"]
[" ","Anlage IV Notzeichen"]
[]
[]
[null,"http://www.gesetze-im-internet.de/seestro_1972/index.html "]

{"sheet":"help","index":14,"n_rows":151,"n_cols":9,"rows_kept":151,"cut":false,"hidden":false,"merged":[]}
[]
["Stromdreieck"]
["Ablenkungstabelle erstellen"]
["Windrichtungen"]
["Steuerkurs"]
[]
[]
[]
[]
[]
[]
[]
[]
[]
[]
[]
[]
[]
[]
[]
[]
[]
[]
[]
[]
[]
[]
[]
[]
[]
[]
[]
[]
[]
[]
[]
[]
[]
[]
[]
[]
[]
[]
[]
[]
[]
[]
[]
[]
["Stromdreieck"]
[]
[]
[]
[]
[]
[]
[]
[]
[]
["Ablenkungstabelle erstellen"]
["http://www.nautisches-lexikon.de/b_navi/ablenkungstabelle/f.html "]
[]
[]
[]
[]
[]
[]
[]
[]
["Windrichtungen"]
[]
[]
[]
[]
[]
[]
[]
[]
[]
[]
[]
[]
[]
[]
[]
[]
[]
[]
[]
["Rumpfgeschwindigkeit"]
["Die Rumpfgeschwindigkeit ist ein theoretischer Maximalwert für die bei Verdrängerfahrt mögliche Höchstgeschwindigkeit eines Schiffes. Sie errechnet sich näherungsweise aus der Quadratwurzel der Wasserlinienlänge"]
["des Schiffes in Metern multipliziert mit dem Faktor 4,5 (Ergebnis in Kilometern pro Stunde), 1,25 (Ergebnis in Meter pro Sekunde) oder 2,43 (Ergebnis in Knoten):"]
[]
[]
[]
["Die Rumpfgeschwindigkeit ist die Ausbreitungsgeschwindigkeit des vom Schiff selbst erzeugten, aus Bug- und Heckwelle bestehenden Wellensystems. Mit zunehmender Geschwindigkeit nimmt die Wellenlänge der Bugwelle zu, bis sich Bug- und Heckwelle überlagern und das Schiff zwischen seiner Bug- und Heckwelle „gefangen“ ist. Die Rumpfgeschwindigkeit beträgt für einen Rumpf mit einer Länge der Konstruktionswasserlinie"]
[]
["von 10 Metern etwa 7,7 Knoten 14,2 km/h,"]
["von 100 Metern etwa 24 Knoten 44,4 km/h,"]
["von 300 Metern etwa 42 Knoten 77,8 km/h."]
[]
["Die Tatsache, dass die Rumpfgeschwindigkeit nur von der Wasserlinienlänge abhängt, ist der Grund, warum größere Schiffe – bei entsprechend starkem Antrieb durch Wind oder Motorleistung – in Verdrängerfahrt höhere Geschwindigkeiten erreichen können als kleinere Schiffe. Dies spiegelt sich in der Redewendung „Länge läuft“ wider."]
[]
["Wirtschaftlich akzeptabel sind bei ihnen normalerweise nur Geschwindigkeiten bis ca."]
["."]
[]
[]
[]
[]
["Mathematic"]
["Einheitskreis"]
[]
[]
[]
[]
[]
[]
[]
[]
[]
[]
["Trigonomie"]
[]
[]
[]
[]
[]
[]
[]
[]
[]
[]
[]
[]
[]
[]
[]
[]
[]
["Feuer in der Kim"]
[]
[null,null,null,null,null,null,null,null,"Die Formel hierfür lautet  R= 2,075 *  ( Ö Ah + Ö h )"]
[]
[null,null,null,null,null,null,null,null,"R= Radius in Seemeilen"]
[null,null,null,null,null,null,null,null,"Ah = Augenhöhe in m"]
[null,null,null,null,null,null,null,null,"h = Leuchtfeuerhöhe in m"]
[]
[]
[]
[]
["Steuerkurs"]

{"sheet":"Tabelle5","index":15,"n_rows":0,"n_cols":0,"rows_kept":0,"cut":false,"hidden":false,"merged":[]}